bitfinex/quotes_BTCUSD_20260125
["timestamp","ask_amount","ask_price","bid_price","bid_amount"]
[1769383386105,1.10951826,86629.0,86618.0,0.17732]
[1769383386320,0.01154401,86625.0,86610.0,0.21833247]
[1769383386522,0.21356723,86626.0,86610.0,0.21833247]
[1769383386523,1.10951826,86624.0,86610.0,0.21833247]
[1769383387985,1.10951826,86624.0,86610.0,0.22987848]
[1769383388235,1.10951826,86629.0,86611.0,0.01154587]
[1769383388454,1.10951826,86629.0,86611.0,0.21833247]
[1769383388621,1.12106173,86629.0,86611.0,0.21833247]
[1769383388838,1.10951826,86628.0,86611.0,0.21833247]
[1769383389190,0.43658702,86640.0,86616.0,0.01154521]
[1769383389393,0.17732,86636.0,86621.0,0.01154454]
[1769383389633,0.17732,86636.0,86619.0,0.21833247]
[1769383389852,0.01154321,86631.0,86606.0,0.01154654]
[1769383390058,0.01154321,86631.0,86571.0,0.06164199]
[1769383390059,1.10951826,86623.0,86609.0,0.01154614]
[1769383390267,1.10951826,86623.0,86610.0,0.01154601]
[1769383390446,0.21356723,86627.0,86610.0,0.22987848]
[1769383390656,0.21356723,86627.0,85000.0,33.81489316]
[1769383390659,1.11255035,86666.0,86642.0,1.10568385]
[1769383390865,1.11255035,86666.0,86645.0,0.21833247]
[1769383390866,0.11529989,86665.0,86645.0,0.21833247]
[1769383391063,0.11529989,86665.0,86643.0,0.17732]
[1769383391064,1.10965659,86663.0,86646.0,0.21833247]
[1769383391206,0.11529989,86662.0,86646.0,0.21833247]
[1769383391406,0.11529989,86661.0,86646.0,0.21833247]
[1769383391608,1.10965659,86663.0,86646.0,0.21833247]
[1769383391818,0.11525843,86662.0,86646.0,0.21833247]
[1769383392059,0.01153908,86662.0,86646.0,0.21833247]
[1769383392220,1.12119553,86663.0,86646.0,0.21833247]
[1769383392419,0.01153934,86660.0,86646.0,0.21833247]
[1769383392645,0.01153908,86662.0,86646.0,0.21833247]
[1769383393116,1.10965659,86662.0,86646.0,0.21833247]
[1769383393287,1.10965659,86660.0,86643.0,0.17732]
[1769383393487,0.21356723,86657.0,86643.0,0.17732]
[1769383393836,0.06031083,86679.0,86627.0,0.04616]
[1769383393837,1.11255035,86642.0,86627.0,0.04616]
[1769383394037,1.10965659,86637.0,86627.0,0.04616]
[1769383394342,1.10965659,86637.0,86620.0,0.18886467]
[1769383394343,0.43658702,86640.0,86620.0,0.17732]
[1769383394344,0.01154321,86631.0,86620.0,0.17732]
[1769383394572,1.06395819,86631.0,86620.0,0.17732]
[1769383395197,1.06395819,86631.0,86620.0,0.17746106]
[1769383395702,1.06395819,86631.0,86611.0,0.22987834]
[1769383395703,0.01,86620.0,86599.0,0.22987994]
[1769383395914,1.06381854,86614.0,86599.0,0.21833247]
[1769383396504,0.85380039,86614.0,86600.0,0.01154734]
[1769383396708,0.85380039,86614.0,86601.0,0.01154721]
[1769383396912,0.2101752,86619.0,86606.0,0.01154654]
[1769383397112,0.2101752,86619.0,86602.0,0.01154707]
[1769383397273,0.2101752,86619.0,86603.0,0.01154694]
[1769383397475,0.2101752,86619.0,86603.0,0.06928103]
[1769383397684,0.85590057,86623.0,86605.0,0.01154667]
[1769383397882,0.85590057,86623.0,86606.0,0.01154654]
[1769383398107,0.86744484,86623.0,86603.0,0.01154694]
[1769383398326,0.01154441,86622.0,86603.0,0.01154694]
[1769383398588,0.85590057,86621.0,86603.0,0.01154694]
[1769383398786,0.85590057,86621.0,86602.0,0.01154707]
[1769383398985,0.85590057,86621.0,86603.0,0.01154694]
[1769383399222,0.85590057,86621.0,86603.0,0.06928143]
[1769383399427,0.85590057,86621.0,86603.0,0.01154694]
[1769383399631,1.06607577,86619.0,86599.0,0.2179698]
[1769383399833,0.85604163,86619.0,86599.0,0.2179698]
[1769383400037,0.85590057,86617.0,86599.0,0.2179698]
[1769383400242,1.06607577,86617.0,86599.0,0.2179698]
[1769383400452,0.85590057,86615.0,86599.0,0.2179698]
[1769383400868,0.86744591,86615.0,86599.0,0.2179698]
[1769383401293,0.85590057,86615.0,86599.0,0.2179698]
[1769383401970,0.00014106,86619.0,86594.0,0.04616]
[1769383401971,0.61934697,86607.0,86594.0,0.04616]
[1769383402179,0.17732,86612.0,86585.0,0.01154934]
[1769383402385,0.57364857,86611.0,86588.0,1.1189793]
[1769383402586,0.57364857,86611.0,86590.0,0.2179698]
[1769383402792,0.2101752,86617.0,86593.0,0.2179698]
[1769383402943,0.2101752,86617.0,86599.0,0.01154747]
[1769383403182,0.2101752,86617.0,86599.0,0.22951727]
[1769383403381,0.2101752,86617.0,86596.0,0.06928715]
[1769383403382,0.18900587,86619.0,86571.0,0.4081759]
[1769383403383,0.00014106,86619.0,86609.0,0.01154614]
[1769383403589,0.00014106,86619.0,86612.0,0.2179698]
[1769383403805,0.00014106,86619.0,86613.0,0.2179698]
[1769383406379,0.00014106,86619.0,86604.0,0.06927968]
[1769383406380,0.00014106,86619.0,86605.0,1.1189793]
[1769383406590,0.01,86613.0,86599.0,0.0462]
[1769383406812,0.01,86613.0,86600.0,0.01154734]
[1769383407012,0.01,86613.0,86599.0,0.0462]
[1769383407013,0.01,86613.0,86599.0,0.05774747]
[1769383407216,0.01,86613.0,86599.0,0.0462]
[1769383407425,1.135233,86617.0,86600.0,0.01154734]
[1769383407632,1.135233,86617.0,86602.0,0.01154707]
[1769383408094,1.135233,86617.0,86601.0,0.01154721]
[1769383408914,1.135233,86617.0,86600.0,0.01154734]
[1769383409122,1.135233,86617.0,86599.0,0.05774747]
[1769383409330,1.3454082,86617.0,86600.0,0.01154734]
[1769383409557,1.3454082,86617.0,86599.0,0.0462]
[1769383409558,0.00014106,86619.0,86609.0,1.1189793]
[1769383409780,0.00014106,86619.0,86603.0,0.2183246]
[1769383409981,0.00014106,86619.0,86603.0,0.0003548]
[1769383409982,1.135233,86616.0,86603.0,0.0003548]
[1769383410199,0.00014106,86619.0,86604.0,1.1189793]
[1769383412199,1.135233,86618.0,86603.0,0.0003548]
[1769383412405,1.3454082,86618.0,86603.0,0.0003548]
[1769383413203,0.01154534,86615.0,86603.0,0.0003548]
[1769383413439,0.01154547,86614.0,86603.0,0.0003548]
[1769383413645,0.01154534,86615.0,86603.0,0.0003548]
[1769383413847,0.06927075,86617.0,86603.0,0.0003548]
[1769383414018,0.01154534,86615.0,86603.0,0.0003548]
[1769383414226,0.01154547,86614.0,86603.0,0.0003548]
[1769383414433,0.01154534,86615.0,86603.0,0.0003548]
[1769383414660,0.01154521,86616.0,86603.0,0.0003548]
[1769383415705,0.01154507,86617.0,86603.0,0.0003548]
[1769383416135,0.22278137,86602.0,86587.0,0.01154907]
[1769383416340,0.43658702,86630.0,86593.0,1.07090043]
[1769383416540,0.43658702,86630.0,86583.0,0.17732]
[1769383416541,0.22278137,86622.0,86604.0,0.01154681]
[1769383416748,0.43658702,86640.0,86590.0,0.43658702]
[1769383416749,0.22278137,86629.0,86609.0,0.01154614]
[1769383416988,0.0462,86641.0,86609.0,0.01154614]
[1769383416989,0.22278137,86636.0,86617.0,0.01154507]
[1769383417188,0.22278137,86636.0,86618.0,0.01154494]
[1769383417395,0.22278137,86636.0,86617.0,1.0824455]
[1769383417396,0.22278137,86636.0,86617.0,1.07090043]
[1769383417614,0.22278137,86636.0,86617.0,1.0824455]
[1769383417793,0.61378753,86636.0,86617.0,1.07090043]
[1769383417996,0.8365689,86634.0,86615.0,0.21939823]
[1769383418291,0.43658702,86630.0,86600.0,0.01154734]
[1769383418464,0.61378753,86627.0,86606.0,0.01154654]
[1769383418666,0.01154414,86624.0,86605.0,1.30184533]
[1769383418874,0.01154387,86626.0,86605.0,0.2309449]
[1769383419051,0.01154401,86625.0,86606.0,1.07090043]
[1769383419253,0.90583141,86627.0,86606.0,1.07090043]
[1769383419254,0.8365689,86627.0,86608.0,0.01154627]
[1769383419455,0.01154387,86626.0,86606.0,1.3018452]
[1769383419906,0.34604957,86714.0,86604.0,0.04634106]
[1769383419907,0.61378753,86624.0,86604.0,0.04634106]
[1769383420128,0.06031083,86646.0,86586.0,0.01154921]
[1769383420129,0.01,86606.0,86586.0,0.01154921]
[1769383420336,0.22278137,86629.0,86604.0,1.07090043]
[1769383420552,0.06031083,86649.0,86604.0,1.07090043]
[1769383420553,0.13803598,86656.0,86606.0,1.07090043]
[1769383420759,0.13803598,86656.0,86602.0,0.01154707]
[1769383420760,0.01154254,86636.0,86616.0,1.07090043]
[1769383420959,0.01154254,86636.0,86619.0,0.21939823]
[1769383420960,0.01154281,86634.0,86619.0,0.21939823]
[1769383421164,0.01154294,86633.0,86620.0,1.07090043]
[1769383421388,0.01154267,86635.0,86620.0,1.07090043]
[1769383421596,0.01154281,86634.0,86620.0,1.07090043]
[1769383421802,0.01154294,86633.0,86620.0,1.07090043]
[1769383422009,0.01168405,86633.0,86620.0,1.07090043]
[1769383422236,0.22278137,86631.0,86606.0,0.21939823]
[1769383422452,0.62354788,86628.0,86606.0,0.21939823]
[1769383422667,0.00014111,86633.0,86606.0,0.21939823]
[1769383422668,0.84632925,86625.0,86606.0,0.21939823]
[1769383423081,0.01154481,86619.0,86606.0,0.21939823]
[1769383423287,0.01154467,86620.0,86606.0,0.21939823]
[1769383424353,0.01154427,86623.0,86606.0,0.21939823]
[1769383424584,0.01154427,86623.0,86607.0,1.07090043]
[1769383424795,0.01154427,86623.0,86599.0,0.01154747]
[1769383424997,0.01154427,86623.0,86603.0,0.21939823]
[1769383424998,0.05702509,86621.0,86603.0,0.21939823]
[1769383425219,0.01154467,86620.0,86603.0,0.21939823]
[1769383425599,0.06926656,86622.0,86604.0,1.07090043]
[1769383425600,0.01154441,86622.0,86604.0,1.07090043]
[1769383425836,0.01154454,86621.0,86605.0,0.21939823]
[1769383426070,0.01154454,86621.0,86602.0,0.05774707]
[1769383426071,0.62354788,86621.0,86602.0,0.05774707]
[1769383426349,0.62354788,86621.0,86603.0,0.21939823]
[1769383426778,0.62354788,86621.0,86604.0,0.21939823]
[1769383427289,0.4560167,86621.0,86604.0,1.29029866]
[1769383428908,0.4560167,86621.0,86605.0,0.21939823]
[1769383429312,0.46756124,86621.0,86605.0,0.21939823]
[1769383429973,0.01154467,86620.0,86605.0,0.21939823]
[1769383430385,0.01154494,86618.0,86605.0,0.21939823]
[1769383430835,0.4560167,86621.0,86605.0,0.21939823]
[1769383431281,0.46756124,86621.0,86605.0,0.21939823]
[1769383431496,0.4560167,86621.0,86605.0,0.21939823]
[1769383431712,0.01154481,86619.0,86605.0,1.29029866]
[1769383431930,0.01154467,86620.0,86605.0,1.29029866]
[1769383432843,0.46756124,86621.0,86605.0,1.29029866]
[1769383433283,0.46756124,86621.0,86600.0,0.01154734]
[1769383433474,0.46756124,86621.0,86603.0,1.07090043]
[1769383433780,0.46756124,86621.0,86604.0,0.21939823]
[1769383434429,0.17183382,86663.0,86604.0,0.23094504]
[1769383434430,0.45783312,86633.0,86604.0,0.23094504]
[1769383434652,0.45783312,86633.0,86611.0,1.07090043]
[1769383434653,0.17732,86622.0,86611.0,1.07090043]
[1769383434874,0.17732,86622.0,86590.0,0.43672312]
[1769383434875,0.17732,86632.0,86622.0,0.01]
[1769383435500,0.17732,86632.0,86621.0,1.07090043]
[1769383436890,0.00014111,86633.0,86621.0,1.07090043]
[1769383438080,0.00014111,86633.0,86626.0,0.21939823]
[1769383438278,0.00014111,86633.0,86627.0,1.07090043]
[1769383438518,0.00014111,86633.0,86626.0,0.21939823]
[1769383440085,0.01154227,86638.0,86626.0,0.21939823]
[1769383440293,0.17732,86641.0,86629.0,1.07090043]
[1769383440505,0.17732,86641.0,86630.0,0.21939823]
[1769383440810,0.17732,86641.0,86630.0,1.29029866]
[1769383446412,0.17732,86641.0,86598.0,0.3464248]
[1769383446413,0.21005586,86639.0,86611.0,0.20791968]
[1769383446621,0.05771401,86635.0,86613.0,0.01154561]
[1769383446827,0.01154241,86637.0,86611.0,0.26564898]
[1769383446828,0.21005586,86631.0,86612.0,0.01154574]
[1769383447030,1.10231823,86630.0,86613.0,0.01154561]
[1769383447464,1.10231823,86630.0,86614.0,0.01154547]
[1769383447681,1.10231823,86630.0,86611.0,0.20791968]
[1769383447682,1.10231823,86630.0,86611.0,1.32525889]
[1769383447876,1.10231823,86630.0,86613.0,0.01154561]
[1769383448094,1.10231823,86630.0,86612.0,0.01154574]
[1769383448294,0.21005586,86629.0,86606.0,0.01154654]
[1769383448641,1.31237409,86626.0,86607.0,0.01154641]
[1769383448860,1.31237409,86626.0,86609.0,0.20791968]
[1769383449064,1.31237409,86626.0,86610.0,1.31371302]
[1769383449278,0.01154401,86625.0,86603.0,0.01154694]
[1769383449449,0.21005586,86623.0,86607.0,1.32525943]
[1769383449676,0.01154374,86627.0,86609.0,1.10579334]
[1769383449849,0.22159947,86628.0,86609.0,1.31371302]
[1769383450235,1.10231823,86627.0,86609.0,1.31371302]
[1769383450446,1.10231823,86627.0,86582.0,0.69575214]
[1769383450447,1.10231823,86627.0,86588.0,0.01154894]
[1769383450448,1.10231823,86618.0,86588.0,0.01154894]
[1769383450648,1.10231823,86618.0,86570.0,0.43672312]
[1769383450649,1.10231823,86614.0,86590.0,0.06929139]
[1769383451035,0.17732,86629.0,86616.0,0.20791968]
[1769383451235,0.0462,86634.0,86620.0,0.20791968]
[1769383451442,0.0462,86634.0,86621.0,1.10579334]
[1769383451617,0.0462,86634.0,86624.0,0.20791968]
[1769383451836,0.0462,86634.0,86624.0,1.31371302]
[1769383452230,0.0462,86634.0,86618.0,1.10579334]
[1769383452453,0.0462,86634.0,86619.0,0.20791968]
[1769383452899,0.0462,86634.0,86614.0,0.05772723]
[1769383452900,0.0004,86663.0,86611.0,1.10579334]
[1769383453118,0.0004,86663.0,86573.0,2.31018071]
[1769383453119,0.00047036,86660.0,86643.0,0.01154161]
[1769383453330,0.00047036,86660.0,86647.0,1.10579334]
[1769383454845,0.00047036,86660.0,86644.0,0.21946116]
[1769383455069,0.00047036,86660.0,86645.0,0.01154134]
[1769383455324,0.00047036,86660.0,86640.0,0.01154201]
[1769383455325,0.04616,86680.0,86653.0,0.01154028]
[1769383455564,0.04616,86680.0,86660.0,0.00047036]
[1769383455565,0.01153748,86674.0,86660.0,0.00047036]
[1769383455770,0.01153761,86673.0,86655.0,1.10739112]
[1769383455978,0.21067223,86673.0,86655.0,1.10739112]
[1769383456450,0.01153775,86672.0,86655.0,1.10739112]
[1769383456853,0.01153775,86672.0,86655.0,1.32628286]
[1769383457213,0.22220984,86673.0,86655.0,1.32628286]
[1769383457418,0.01153775,86672.0,86655.0,1.32628286]
[1769383457634,1.30821529,86673.0,86656.0,0.21889174]
[1769383457837,0.01153681,86679.0,86657.0,0.21889174]
[1769383458029,0.01153681,86679.0,86655.0,0.01154001]
[1769383458030,0.01153708,86677.0,86658.0,1.33782247]
[1769383458230,0.01153695,86678.0,86659.0,1.10739112]
[1769383458491,1.31975224,86678.0,86659.0,1.10739112]
[1769383458711,0.22220931,86677.0,86659.0,1.10739112]
[1769383458927,1.31975237,86677.0,86659.0,1.10739112]
[1769383459117,0.21067223,86677.0,86661.0,1.10739112]
[1769383459370,0.21067223,86677.0,86662.0,0.21889174]
[1769383459577,0.21067223,86677.0,86662.0,1.32628286]
[1769383459998,0.00014105,86680.0,86663.0,0.01153894]
[1769383460214,0.00014105,86680.0,86663.0,1.10739112]
[1769383460431,0.001,86677.0,86664.0,0.21889174]
[1769383460846,0.00014105,86680.0,86664.0,0.21889174]
[1769383461266,0.00114105,86680.0,86664.0,0.21889174]
[1769383462317,0.00014105,86680.0,86664.0,0.21889174]
[1769383462543,0.001,86677.0,86664.0,0.21889174]
[1769383462979,0.01153681,86679.0,86664.0,0.21889174]
[1769383463187,0.00014105,86680.0,86664.0,0.21889174]
[1769383463416,1.10907987,86679.0,86664.0,0.21889174]
[1769383463955,0.01153788,86671.0,86649.0,1.11893193]
[1769383464139,0.01153801,86670.0,86650.0,0.01154068]
[1769383464386,0.21067223,86669.0,86650.0,0.01154068]
[1769383464622,0.06922513,86674.0,86643.0,0.06274019]
[1769383464623,0.21107223,86687.0,86655.0,1.20345078]
[1769383464834,0.0001722,86680.0,86669.0,1.11739112]
[1769383465683,0.001,86679.0,86669.0,1.11739112]
[1769383465898,0.21167223,86679.0,86669.0,0.01]
[1769383466106,1.14115413,86676.0,86669.0,0.01]
[1769383466326,0.21067223,86675.0,86659.0,0.01153948]
[1769383466546,0.01170888,86680.0,86659.0,0.01153948]
[1769383466547,0.0011722,86680.0,86664.0,1.22036184]
[1769383466757,0.0011722,86680.0,86666.0,1.10739112]
[1769383466962,0.0001722,86680.0,86666.0,1.10739112]
[1769383467373,0.0001722,86680.0,86666.0,1.11892967]
[1769383467547,0.0001722,86680.0,86666.0,1.1187732]
[1769383467748,0.001,86676.0,86666.0,1.1187732]
[1769383467968,0.001,86676.0,86662.0,0.06923442]
[1769383467969,0.00352621,86684.0,86676.0,0.001]
[1769383468166,0.00352621,86684.0,86672.0,1e-08]
[1769383468819,0.17724,86687.0,86672.0,1e-08]
[1769383469195,0.01153588,86686.0,86672.0,1e-08]
[1769383469597,1.12961692,86689.0,86672.0,1e-08]
[1769383469777,0.0004,86816.0,86672.0,1e-08]
[1769383469778,0.0004,86816.0,86691.0,1.10739112]
[1769383469779,0.0002,86720.0,86691.0,1.10739112]
[1769383469978,0.0002,86720.0,86698.0,1.11892541]
[1769383470371,0.0002,86720.0,86692.0,0.2234]
[1769383470372,0.0002,86720.0,86708.0,0.01153296]
[1769383470590,0.0002,86720.0,86710.0,0.01153269]
[1769383470808,0.0002,86720.0,86704.0,0.21889174]
[1769383470809,0.0002,86720.0,86705.0,0.01153336]
[1769383471017,1.12995794,86720.0,86704.0,0.21889174]
[1769383471227,1.12995794,86720.0,86680.0,0.43672312]
[1769383471228,0.001,86705.0,86687.0,0.01153575]
[1769383471472,0.01153402,86700.0,86681.0,0.17724]
[1769383471683,1.12961692,86694.0,86681.0,0.17724]
[1769383471885,1.34028915,86694.0,86681.0,0.17724]
[1769383471997,1.34028915,86694.0,86681.0,0.18877655]
[1769383472312,1.34028915,86694.0,86681.0,0.17724]
[1769383472528,1.11971474,86694.0,86683.0,0.01153628]
[1769383472719,1.11971474,86694.0,86684.0,0.01153615]
[1769383473106,1.11971474,86694.0,86676.0,0.49579564]
[1769383473109,0.228506,86680.0,86661.0,0.21889174]
[1769383473315,0.001,86684.0,86660.0,1.10773982]
[1769383473316,1.31964658,86677.0,86660.0,0.0003487]
[1769383473719,1.33118366,86677.0,86660.0,0.0003487]
[1769383473925,0.21696932,86676.0,86660.0,0.01188804]
[1769383474171,1.31964658,86676.0,86663.0,0.01153894]
[1769383474587,1.31964658,86676.0,86664.0,0.01153881]
[1769383474791,1.31964658,86676.0,86663.0,0.01153894]
[1769383475390,1.31964658,86676.0,86662.0,0.01153908]
[1769383475690,0.32293292,86706.0,86660.0,0.05804529]
[1769383475691,0.21696932,86673.0,86660.0,0.0003487]
[1769383476196,0.01153815,86669.0,86650.0,0.04616]
[1769383476437,0.1772,86674.0,86650.0,0.04630105]
[1769383476438,1.14106072,86664.0,86650.0,0.04630105]
[1769383476649,0.43672312,86670.0,86650.0,0.00014105]
[1769383476851,0.43672312,86670.0,86639.0,0.0003487]
[1769383476852,0.21696932,86654.0,86639.0,0.0003487]
[1769383477059,0.01153974,86657.0,86639.0,0.0003487]
[1769383477060,1.3578904,86652.0,86639.0,0.00081906]
[1769383477263,1.14092108,86650.0,86639.0,0.00081906]
[1769383477468,1.14092108,86649.0,86639.0,0.00081906]
[1769383477704,0.21696932,86648.0,86639.0,0.00081906]
[1769383477920,0.01154014,86654.0,86639.0,0.00081906]
[1769383477921,1.14092108,86647.0,86639.0,0.00047036]
[1769383478120,0.23077762,86664.0,86639.0,0.00047036]
[1769383478121,0.21696932,86646.0,86639.0,0.00047036]
[1769383478296,1.3578904,86646.0,86639.0,0.00047036]
[1769383480924,1.3578904,86646.0,86608.0,0.13852]
[1769383480925,1.1449556,86644.0,86613.0,0.21885145]
[1769383481184,1.1449556,86627.0,86606.0,1.12199734]
[1769383481385,0.01207324,86628.0,86597.0,1.07583734]
[1769383481386,0.01154521,86616.0,86597.0,1.07583734]
[1769383481596,1.1449556,86612.0,86597.0,0.00014116]
[1769383481813,1.1449556,86612.0,86599.0,0.01154747]
[1769383482034,0.17724,86621.0,86597.0,1.0759785]
[1769383482236,0.17724,86621.0,86597.0,0.00014116]
[1769383482237,0.001,86599.0,86597.0,0.00014116]
[1769383482613,0.001,86599.0,86584.0,0.01154947]
[1769383482614,0.01154854,86591.0,86572.0,0.21885145]
[1769383482822,0.001,86599.0,86565.0,0.05776]
[1769383482823,0.01154881,86589.0,86566.0,0.01155187]
[1769383483026,1.31757136,86589.0,86568.0,0.01155161]
[1769383483226,0.40575813,86589.0,86568.0,0.01155161]
[1769383483439,1.12878255,86588.0,86572.0,0.01155107]
[1769383483961,1.12878255,86588.0,86575.0,0.01155067]
[1769383484167,1.12878255,86588.0,86577.0,0.01155041]
[1769383484375,0.17724,86587.0,86576.0,0.01155054]
[1769383484503,0.17724,86587.0,86575.0,0.01155067]
[1769383484711,0.17724,86587.0,86574.0,0.01155081]
[1769383484712,0.17724,86587.0,86576.0,0.01155054]
[1769383485558,0.17724,86587.0,86574.0,0.01155081]
[1769383485739,0.17724,86587.0,86578.0,0.01155027]
[1769383485937,0.17724,86587.0,86576.0,0.01155054]
[1769383486137,0.17724,86587.0,86575.0,0.01155067]
[1769383486345,1.12878255,86586.0,86567.0,0.01155174]
[1769383486576,0.17724,86587.0,86567.0,0.01155174]
[1769383486577,0.21696932,86583.0,86567.0,0.01155174]
[1769383486746,1.1449556,86582.0,86567.0,0.01155174]
[1769383486964,1.35862422,86580.0,86570.0,0.01155134]
[1769383487166,0.39420932,86587.0,86573.0,0.01155094]
[1769383487364,1.53586422,86587.0,86574.0,0.01155081]
[1769383487571,1.53586422,86587.0,86575.0,0.01155067]
[1769383488158,1.53586422,86587.0,86577.0,0.01155041]
[1769383488159,0.17732,86587.0,86577.0,0.01155041]
[1769383488364,0.17732,86587.0,86575.0,0.01155067]
[1769383488539,0.17732,86587.0,86525.0,1.15572953]
[1769383488540,0.21696932,86585.0,86570.0,0.01155134]
[1769383488756,0.21696932,86585.0,86572.0,0.01155107]
[1769383488968,0.21696932,86585.0,86571.0,0.01155121]
[1769383489175,0.21696932,86585.0,86570.0,0.01155134]
[1769383489373,0.21696932,86585.0,86569.0,0.01155147]
[1769383489673,0.21696932,86585.0,86567.0,0.05775864]
[1769383489674,0.21696932,86585.0,86566.0,0.00014124]
[1769383489864,0.17732,86587.0,86549.0,1.07583734]
[1769383489865,0.001,86569.0,86549.0,1.07583734]
[1769383490068,0.00114082,86569.0,86550.0,0.21885145]
[1769383490239,0.00014082,86569.0,86553.0,0.01155361]
[1769383490451,0.00014082,86569.0,86555.0,0.01155334]
[1769383490671,0.00014082,86569.0,86557.0,0.01155308]
[1769383490807,0.00014082,86569.0,86558.0,0.01155294]
[1769383491820,0.00014082,86569.0,86557.0,0.01155308]
[1769383492208,0.00014082,86569.0,86560.0,0.01155268]
[1769383492416,0.00014082,86569.0,86563.0,0.01155227]
[1769383492824,0.00014082,86569.0,86565.0,0.01155201]
[1769383493268,0.00014082,86569.0,86564.0,0.01155214]
[1769383493470,0.00014082,86569.0,86566.0,0.01155187]
[1769383493676,0.00014082,86569.0,86565.0,0.01155201]
[1769383494058,0.00014082,86569.0,86566.0,0.01155187]
[1769383494517,0.00014082,86569.0,86565.0,0.01155201]
[1769383494724,0.00014082,86569.0,86566.0,0.01155187]
[1769383494949,0.00014082,86569.0,86565.0,0.01155201]
[1769383495283,0.00014082,86569.0,86566.0,0.01155187]
[1769383495911,0.00014082,86569.0,86564.0,0.01155214]
[1769383496141,0.01154921,86586.0,86556.0,0.40842371]
[1769383496142,0.17732,86587.0,86572.0,0.01155107]
[1769383496356,0.01154867,86590.0,86570.0,0.21885145]
[1769383496552,0.01154867,86590.0,86568.0,1.07583734]
[1769383496553,1.35862422,86586.0,86568.0,1.08738895]
[1769383497056,1.35862422,86586.0,86571.0,0.01155121]
[1769383497259,1.35862422,86586.0,86573.0,0.01155094]
[1769383497387,1.1416549,86584.0,86564.0,0.23040359]
[1769383497601,0.001,86573.0,86564.0,0.01155214]
[1769383497808,0.00068701,86573.0,86566.0,0.01155187]
[1769383498008,0.00068701,86573.0,86568.0,0.01155161]
[1769383498434,1.1416549,86579.0,86568.0,0.01155161]
[1769383498607,1.35862422,86579.0,86571.0,0.01155121]
[1769383498808,1.35862422,86579.0,86565.0,0.01155201]
[1769383498809,1.1416549,86579.0,86567.0,0.01155174]
[1769383499014,1.1416549,86577.0,86567.0,0.01155174]
[1769383499210,1.1416549,86577.0,86568.0,0.01155161]
[1769383499408,1.1416549,86577.0,86570.0,0.01155134]
[1769383499837,1.1416549,86577.0,86569.0,0.01155147]
[1769383500159,0.01154894,86588.0,86561.0,0.01155254]
[1769383500160,0.21696932,86574.0,86561.0,0.01155254]
[1769383500315,1.1416549,86573.0,86561.0,0.06931512]
[1769383500537,1.1416549,86573.0,86564.0,0.01155214]
[1769383500957,1.1416549,86573.0,86562.0,0.01155241]
[1769383501161,1.1416549,86573.0,86566.0,0.01155187]
[1769383501364,1.1416549,86573.0,86567.0,0.01155174]
[1769383501566,1.1416549,86573.0,86566.0,0.01155187]
[1769383501803,1.1416549,86573.0,86562.0,0.01155241]
[1769383502116,1.1416549,86573.0,86564.0,0.01155214]
[1769383502297,0.21696932,86574.0,86567.0,0.01155174]
[1769383502494,0.1774,86584.0,86573.0,0.01155094]
[1769383502694,1.53602422,86584.0,86572.0,0.01155107]
[1769383502899,1.53602422,86584.0,86571.0,0.01155121]
[1769383503139,1.53602422,86584.0,86572.0,0.01155107]
[1769383503475,1.53602422,86584.0,86569.0,0.01155147]
[1769383503476,1.53613334,86584.0,86570.0,0.01155134]
[1769383503709,0.1774,86584.0,86570.0,0.01155134]
[1769383503912,0.1774,86584.0,86568.0,0.05775785]
[1769383503913,1.11289496,86581.0,86568.0,0.01155161]
[1769383504119,1.3299734,86581.0,86569.0,0.01155147]
[1769383504937,1.11289496,86581.0,86565.0,0.01155201]
[1769383505143,1.11289496,86579.0,86566.0,0.01155187]
[1769383505350,0.21707844,86576.0,86572.0,0.000271]
[1769383505548,1.11289496,86575.0,86572.0,0.000271]
[1769383506269,0.21707844,86591.0,86578.0,0.01155027]
[1769383506515,0.43709773,86610.0,86578.0,0.01155027]
[1769383506516,0.21707844,86601.0,86584.0,0.01154947]
[1769383506797,0.21707844,86601.0,86587.0,1.0780752]
[1769383507033,0.21707844,86588.0,86575.0,0.01155067]
[1769383507283,0.00068701,86587.0,86577.0,0.01155041]
[1769383507529,0.00068701,86587.0,86576.0,0.01155054]
[1769383507773,0.00068701,86587.0,86580.0,0.01155001]
[1769383508024,0.1774,86594.0,86580.0,0.01155001]
[1769383508487,0.1774,86594.0,86582.0,0.01154974]
[1769383508759,0.1774,86594.0,86570.0,0.23102426]
[1769383508760,1.11358197,86582.0,86572.0,0.000271]
[1769383509022,1.11358197,86582.0,86555.0,0.01155334]
[1769383509023,0.21707844,86573.0,86555.0,0.01155334]
[1769383509358,1.11289496,86570.0,86556.0,0.06931867]
[1769383509525,1.11289496,86570.0,86558.0,0.01155294]
[1769383509777,1.11289496,86570.0,86556.0,0.01155321]
[1769383510273,1.11289496,86570.0,86557.0,0.01155308]
[1769383510743,1.11289496,86570.0,86556.0,0.01155321]
[1769383511232,0.21707844,86571.0,86558.0,0.01155294]
[1769383511873,0.21707844,86571.0,86555.0,0.01155334]
[1769383512083,0.21707844,86571.0,86547.0,0.01155441]
[1769383512084,0.01155161,86568.0,86547.0,0.01155441]
[1769383512287,0.21707844,86565.0,86545.0,0.05775468]
[1769383512528,1.11289496,86562.0,86546.0,0.01155454]
[1769383512733,0.21707844,86559.0,86547.0,0.01155441]
[1769383512941,0.21707844,86557.0,86545.0,0.0462]
[1769383513396,0.21707844,86557.0,86547.0,0.01155441]
[1769383513638,0.21707844,86557.0,86548.0,0.01155428]
[1769383513881,0.21676547,86557.0,86547.0,0.0004712]
[1769383514090,0.1774,86571.0,86549.0,0.01155414]
[1769383514091,0.01155147,86569.0,86549.0,0.01155414]
[1769383514296,1.11289496,86565.0,86550.0,0.01155401]
[1769383514479,0.21707844,86564.0,86550.0,0.01155401]
[1769383514716,1.11289496,86565.0,86547.0,0.01202561]
[1769383514717,0.21707844,86562.0,86547.0,0.0004712]
[1769383514929,0.21707844,86562.0,86540.0,0.01155535]
[1769383514930,0.21707844,86558.0,86540.0,0.01155535]
[1769383515135,1.11289496,86555.0,86542.0,0.00054082]
[1769383515317,0.21707844,86552.0,86542.0,0.00054082]
[1769383515737,0.21707844,86552.0,86542.0,0.0120959]
[1769383516181,0.21707844,86552.0,86543.0,0.01155494]
[1769383516389,0.21707844,86552.0,86544.0,0.01155481]
[1769383516596,0.21227641,86558.0,86547.0,0.01155441]
[1769383516964,0.21227641,86554.0,86542.0,0.00054082]
[1769383517169,0.21227641,86553.0,86542.0,0.00054082]
[1769383517396,0.01155268,86560.0,86537.0,0.01155575]
[1769383517397,1.12133928,86550.0,86537.0,0.01155575]
[1769383517610,0.1774,86568.0,86532.0,0.0004]
[1769383517611,1.12133928,86546.0,86532.0,0.0004]
[1769383517820,1.12133928,86542.0,86532.0,0.0004]
[1769383518029,0.21227641,86541.0,86532.0,0.0004]
[1769383518686,0.21227641,86540.0,86532.0,0.0004]
[1769383520338,0.21227641,86538.0,86532.0,0.0004]